lending/lending_fUSD_20250418
["ID","MTS","AMOUNT","RATE_DAILY","PERIOD"]
[358344287,1744965058195,-517.83015412,0.00058082,2]
[358344288,1744965058205,-770.9,0.00058082,120]
[358344289,1744965058214,-1487.11164,0.00058082,120]
[358344290,1744965058224,-151.0,0.00058082,120]
[358344291,1744965058234,-500.0,0.00058082,120]
[358344292,1744965058244,-500.0,0.00058082,120]
[358344293,1744965058254,-4300.91,0.00058082,120]
[358344294,1744965058264,-4156.52,0.00058082,120]
[358344295,1744965058274,-467.62144706,0.00058082,120]
[358344296,1744965058283,-628.19,0.00058082,120]
[358344297,1744965058293,-460.31263107,0.00058082,120]
[358344298,1744965058303,-500.0,0.00058082,120]
[358344299,1744965058313,-151.0,0.00058082,120]
[358344300,1744965058323,-151.0,0.00058082,120]
[358344301,1744965058333,-500.0,0.00058082,120]
[358344302,1744965058343,-500.0,0.00058082,120]
[358344303,1744965058352,-500.0,0.00058082,120]
[358344304,1744965058361,-691.54,0.00058082,120]
[358344305,1744965058370,-500.0,0.00058082,120]
[358344306,1744965058380,-621.59747694,0.00058082,120]
[358344307,1744965058392,-575.1669,0.00058082,120]
[358344308,1744965058401,-500.0,0.00058082,120]
[358344309,1744965058410,-2645.7,0.000581,60]
[358344310,1744965058419,-151.0,0.0005813,120]
[358344311,1744965058428,-151.0,0.0005813,120]
[358344312,1744965058437,-151.0,0.0005813,120]
[358344313,1744965058446,-517.70653373,0.00058132,120]
[358344314,1744965058457,-500.0,0.00058132,120]
[358344315,1744965058466,-513.91266887,0.00058132,120]
[358344316,1744965058475,-527.1584027,0.00058132,120]
[358344317,1744965058485,-500.0,0.00058132,120]
[358344318,1744965058494,-500.0,0.00058132,120]
[358344319,1744965058503,-521.3,0.00058132,120]
[358344320,1744965058513,-500.0,0.00058132,120]
[358344321,1744965058522,-890.47,0.00058132,120]
[358344322,1744965058531,-500.0,0.00058132,120]
[358344323,1744965058541,-500.0,0.00058132,30]
[358344324,1744965058551,-151.0,0.00058132,120]
[358344325,1744965058561,-151.0,0.00058132,120]
[358344326,1744965058571,-165.535279,0.00058132,120]
[358344327,1744965058580,-151.0,0.00058132,110]
[358344328,1744965058589,-151.0,0.00058132,120]
[358344329,1744965058599,-151.0,0.00058132,120]
[358344330,1744965058609,-291.864448,0.00058132,120]
[358344331,1744965058618,-291.864448,0.00058132,120]
[358344332,1744965058628,-151.0,0.00058132,120]
[358344333,1744965058637,-151.0,0.00058132,120]
[358344334,1744965058647,-151.0,0.00058132,120]
[358344335,1744965058657,-151.0,0.00058132,120]
[358344336,1744965058667,-151.0,0.00058132,120]
[358344337,1744965058675,-150.0,0.00058211,120]
[358344338,1744965058686,-3213.73205018,0.00058359,15]
[358344339,1744965058695,-165.95,0.0005855,2]
[358344340,1744965058705,-160.0,0.00058612,15]
[358344341,1744965058715,-500.0,0.0005863,120]
[358344342,1744965058724,-500.0,0.0005863,120]
[358344343,1744965058734,-500.0,0.0005863,120]
[358344344,1744965058744,-500.0,0.0005863,120]
[358344345,1744965058753,-500.0,0.0005863,120]
[358344346,1744965058762,-500.0,0.0005863,120]
[358344347,1744965058772,-1250.02,0.0005863,120]
[358344348,1744965058781,-831.64,0.0005863,120]
[358344349,1744965058790,-591.76,0.0005863,120]
[358344350,1744965058799,-2013.03,0.0005863,120]
[358344351,1744965058809,-612.45,0.0005863,120]
[358344352,1744965058818,-1583.91,0.0005863,120]
[358344353,1744965058829,-789.97,0.0005863,120]
[358344354,1744965058839,-5573.03,0.0005863,120]
[358344355,1744965058848,-500.0,0.0005863,120]
[358344356,1744965058857,-533.35,0.0005863,120]
[358344357,1744965058867,-500.0,0.0005863,120]
[358344358,1744965058876,-500.0,0.0005863,120]
[358344359,1744965058885,-618.49079001,0.0005863,120]
[358344360,1744965058895,-500.0,0.0005863,120]
[358344361,1744965058904,-1235.03,0.0005863,120]
[358344362,1744965058913,-499.97816435,0.0005863,120]
[358344363,1744965058923,-500.0,0.0005863,120]
[358344364,1744965058933,-500.0,0.0005863,120]
[358344365,1744965058942,-500.0,0.0005863,120]
[358344366,1744965058953,-500.0,0.0005863,120]
[358344367,1744965058962,-384.24508548,0.0005863,120]
[358344368,1744965058972,-548.36,0.0005863,120]
[358344369,1744965058982,-500.0,0.0005863,120]
[358344370,1744965058992,-500.0,0.0005863,120]
[358344371,1744965059002,-4216.19,0.0005863,7]
[358344372,1744965059012,-1060.19,0.0005863,120]
[358344373,1744965059022,-500.0,0.0005863,120]
[358344374,1744965059031,-500.0,0.0005863,120]
[358344375,1744965059041,-3077.58,0.0005863,120]
[358344376,1744965059050,-500.0,0.0005863,120]
[358344377,1744965059060,-562.74355368,0.0005863,120]
[358344378,1744965059069,-180.92208272,0.0005863,120]
[358344379,1744965059079,-500.0,0.0005863,120]
[358344380,1744965059088,-500.0,0.0005863,120]
[358344381,1744965059098,-770.9,0.0005863,120]
[358344382,1744965059108,-500.0,0.0005863,120]
[358344383,1744965059117,-326.76111498,0.0005863,120]
[358344384,1744965059127,-4300.91,0.0005863,120]
[358344385,1744965059137,-4156.52,0.0005863,120]
[358344386,1744965059147,-628.19,0.0005863,120]
[358344387,1744965059157,-500.0,0.0005863,120]
[358344388,1744965059167,-500.0,0.0005863,120]
[358344389,1744965059176,-500.0,0.0005863,120]
[358344390,1744965059186,-500.0,0.0005863,120]
[358344391,1744965059324,-691.54,0.0005863,120]
[358344392,1744965059334,-500.0,0.0005863,120]
[358344393,1744965059343,-401.02847149,0.0005863,120]
[358344394,1744965059353,-500.0,0.00058679,120]
[358344395,1744965059362,-500.0,0.00058679,120]
[358344396,1744965059371,-500.0,0.00058679,120]
[358344397,1744965059384,-521.3,0.00058679,120]
[358344398,1744965059398,-500.0,0.00058679,120]
[358344399,1744965059407,-890.47,0.00058679,120]
[358344400,1744965059416,-500.0,0.00058679,120]
[358344401,1744965059427,-500.0,0.00058679,30]
[358344402,1744965059436,-4381.72503702,0.00058841,15]
[358344403,1744965059446,-800.0,0.000589,21]
[358344404,1744965059455,-294.82,0.00058998,120]
[358344405,1744965059465,-207.97,0.00059089,2]
[358344406,1744965059474,-5000.0,0.00059127,120]
[358344407,1744965059483,-162.995075,0.00059168,120]
[358344408,1744965059493,-160.850342,0.00059168,120]
[358344409,1744965059501,-156.294348,0.00059168,120]
[358344410,1744965059511,-151.0,0.00059168,120]
[358344411,1744965059519,-151.0,0.00059168,120]
[358344412,1744965059530,-151.661699,0.00059168,120]
[358344413,1744965059539,-151.0,0.00059168,120]
[358344414,1744965059549,-159.363532,0.00059178,120]
[358344415,1744965059560,-151.0,0.00059178,120]
[358344416,1744965059570,-151.952214,0.00059178,120]
[358344417,1744965059582,-151.0,0.00059178,90]
[358344418,1744965059593,-500.0,0.00059178,120]
[358344419,1744965059602,-500.0,0.00059178,120]
[358344420,1744965059612,-500.0,0.00059178,120]
[358344421,1744965059622,-565.71016925,0.00059178,120]
[358344422,1744965059632,-500.0,0.00059178,120]
[358344423,1744965059641,-463.01423195,0.00059178,120]
[358344424,1744965059651,-1250.02,0.00059178,120]
[358344425,1744965059663,-831.64,0.00059178,120]
[358344426,1744965059673,-591.76,0.00059178,120]
[358344427,1744965059683,-2013.03,0.00059178,120]
[358344428,1744965059693,-612.45,0.00059178,120]
[358344429,1744965059702,-1583.91,0.00059178,120]
[358344430,1744965059710,-789.97,0.00059178,120]
[358344431,1744965059720,-5573.03,0.00059178,120]
[358344432,1744965059730,-500.0,0.00059178,120]
[358344433,1744965059739,-533.35,0.00059178,120]
[358344434,1744965059749,-500.0,0.00059178,120]
[358344435,1744965059759,-500.0,0.00059178,120]
[358344436,1744965059769,-500.0,0.00059178,120]
[358344437,1744965059780,-1235.03,0.00059178,120]
[358344438,1744965059789,-500.0,0.00059178,120]
[358344439,1744965059798,-500.0,0.00059178,120]
[358344440,1744965059808,-500.0,0.00059178,120]
[358344441,1744965059818,-297.55983815,0.00059178,120]
[358344442,1744965059827,-548.36,0.00059178,120]
[358344443,1744965059838,-500.0,0.00059178,120]
[358344444,1744965059848,-500.0,0.00059178,120]
[358344445,1744965059858,-4216.19,0.00059178,7]
[358344446,1744965059868,-1060.19,0.00059178,120]
[358344447,1744965059878,-500.0,0.00059178,120]
[358344448,1744965059888,-500.0,0.00059178,120]
[358344449,1744965059897,-3077.58,0.00059178,120]
[358344450,1744965059907,-500.0,0.00059178,120]
[358344451,1744965059916,-592.99265994,0.00059178,120]
[358344452,1744965059925,-500.0,0.00059178,120]
[358344453,1744965059935,-770.9,0.00059178,120]
[358344454,1744965059944,-500.0,0.00059178,120]
[358344455,1744965059954,-4300.91,0.00059178,120]
[358344456,1744965059963,-4156.52,0.00059178,120]
[358344457,1744965059973,-628.19,0.00059178,120]
[358344458,1744965059982,-500.0,0.00059178,120]
[358344459,1744965059991,-500.0,0.00059178,120]
[358344460,1744965060000,-169.32600911,0.00059178,120]
[358344461,1744965060011,-500.0,0.00059178,120]
[358344462,1744965060021,-691.54,0.00059178,120]
[358344463,1744965060031,-407.022244,0.00059178,120]
[358344464,1744965060041,-500.0,0.00059227,120]
[358344465,1744965060052,-500.0,0.00059227,120]
[358344466,1744965060063,-235.37377254,0.00059227,120]
[358344467,1744965060074,-521.3,0.00059227,120]
[358344468,1744965060084,-158.63595192,0.00059227,120]
[358344469,1744965060094,-890.47,0.00059227,120]
[358344470,1744965060103,-500.0,0.00059227,120]
[358344471,1744965060113,-500.0,0.00059227,30]
[358344472,1744965060123,-151.0,0.00059227,30]
[358344473,1744965060133,-261.047419,0.00059227,120]
[358344474,1744965060144,-151.0,0.00059227,120]
[358344475,1744965060154,-261.047419,0.00059227,120]
[358344476,1744965060165,-151.0,0.00059227,120]
[358344477,1744965060175,-245.952544,0.00059227,120]
[358344478,1744965060185,-245.952544,0.00059227,120]
[358344479,1744965060195,-500.0,0.00059726,120]
[358344480,1744965060204,-500.0,0.00059726,120]
[358344481,1744965060214,-500.0,0.00059726,120]
[358344482,1744965060223,-597.65884162,0.00059726,120]
[358344483,1744965060233,-1250.02,0.00059726,120]
[358344484,1744965060243,-831.64,0.00059726,120]
[358344485,1744965060254,-591.76,0.00059726,120]
[358344486,1744965060263,-2013.03,0.00059726,120]
[358344487,1744965060273,-612.45,0.00059726,120]
[358344488,1744965060282,-1583.91,0.00059726,120]
[358344489,1744965060292,-789.97,0.00059726,120]
[358344490,1744965060301,-5573.03,0.00059726,120]
[358344491,1744965060310,-500.0,0.00059726,120]
[358344492,1744965060319,-533.35,0.00059726,120]
[358344493,1744965060329,-500.0,0.00059726,120]
[358344494,1744965060340,-500.0,0.00059726,120]
[358344495,1744965060349,-500.0,0.00059726,120]
[358344496,1744965060359,-1235.03,0.00059726,120]
[358344497,1744965060368,-500.0,0.00059726,120]
[358344498,1744965060379,-500.0,0.00059726,120]
[358344499,1744965060392,-500.0,0.00059726,120]
[358344500,1744965060401,-548.36,0.00059726,120]
[358344501,1744965060411,-500.0,0.00059726,120]
[358344502,1744965060421,-500.0,0.00059726,120]
[358344503,1744965060430,-4216.19,0.00059726,7]
[358344504,1744965060439,-151.0,0.00059726,120]
[358344505,1744965060448,-151.0,0.00059726,120]
[358344506,1744965060458,-151.0,0.00059726,120]
[358344507,1744965060468,-1060.19,0.00059726,120]
[358344508,1744965060478,-500.0,0.00059726,120]
[358344509,1744965060487,-151.0,0.00059726,120]
[358344510,1744965060496,-500.0,0.00059726,120]
[358344511,1744965060506,-3077.58,0.00059726,120]
[358344512,1744965060516,-500.0,0.00059726,120]
[358344513,1744965060525,-500.0,0.00059726,120]
[358344514,1744965060535,-165.470165,0.00059726,120]
[358344515,1744965060545,-165.470165,0.00059726,120]
[358344516,1744965060555,-1487.11164,0.00059726,120]
[358344517,1744965060564,-770.9,0.00059726,120]
[358344518,1744965060574,-1487.11164,0.00059726,120]
[358344519,1744965060585,-151.0,0.00059726,120]
[358344520,1744965060595,-500.0,0.00059726,120]
[358344521,1744965060604,-4300.91,0.00059726,120]
[358344522,1744965060613,-4156.52,0.00059726,120]
[358344523,1744965060623,-628.19,0.00059726,120]
[358344524,1744965060633,-500.0,0.00059726,120]
[358344525,1744965060643,-151.0,0.00059726,120]
[358344526,1744965060652,-151.0,0.00059726,120]
[358344527,1744965060661,-397.30466951,0.00059726,120]
[358344528,1744965060670,-289.528112,0.00059726,120]
[358344529,1744965060679,-151.0,0.00059726,120]
[358344530,1744965060689,-151.0,0.00059726,120]
[358344531,1744965060699,-500.0,0.00059726,120]
[358344532,1744965060708,-691.54,0.00059726,120]
[358344533,1744965060718,-151.0,0.00059726,120]
[358344534,1744965060728,-164.923535,0.00059726,120]
[358344535,1744965060737,-500.0,0.00059774,120]
[358344536,1744965060747,-500.0,0.00059775,120]
[358344537,1744965060756,-626.6346324,0.00059775,120]
[358344538,1744965060766,-521.3,0.00059775,120]
[358344539,1744965060776,-890.47,0.00059775,120]
[358344540,1744965060785,-500.0,0.00059775,120]
[358344541,1744965060794,-260.22988998,0.00059775,30]
[358344542,1744965060804,-151.0,0.00059775,120]
[358344543,1744965060813,-151.0,0.00059775,120]
[358344544,1744965060823,-151.0,0.00059775,120]
[358344545,1744965060833,-151.0,0.00059775,120]
[358344546,1744965060843,-151.0,0.00059775,120]
[358344547,1744965060852,-267.097449,0.00059775,120]
[358344548,1744965060862,-267.097449,0.00059775,120]
[358344549,1744965060871,-373.851447,0.00059775,2]
[358344550,1744965060881,-373.851447,0.00059775,2]
[358344551,1744965060890,-151.0,0.00059775,120]
[358344552,1744965060900,-314.783498,0.00059775,120]
[358344553,1744965060909,-314.783498,0.00059775,120]
[358344554,1744965060918,-5600.0,0.0006,2]
[358344555,1744965060928,-1821.76115928,0.0006,120]
[358344556,1744965060938,-151.0,0.00060263,120]
[358344557,1744965060947,-151.0,0.00060263,110]
[358344558,1744965060957,-151.0,0.00060263,120]
[358344559,1744965060967,-151.0,0.00060263,120]
[358344560,1744965060976,-201.741669,0.00060263,120]
[358344561,1744965060986,-151.0,0.00060263,120]
[358344562,1744965060995,-151.0,0.00060263,120]
[358344563,1744965061005,-500.0,0.00060273,120]
[358344564,1744965061015,-500.0,0.00060273,120]
[358344565,1744965061024,-500.0,0.00060273,120]
[358344566,1744965061034,-1250.02,0.00060273,120]
[358344567,1744965061044,-831.64,0.00060273,120]
[358344568,1744965061054,-591.76,0.00060273,120]
[358344569,1744965061063,-2013.03,0.00060273,120]
[358344570,1744965061072,-612.45,0.00060273,120]
[358344571,1744965061082,-1583.91,0.00060273,120]
[358344572,1744965061091,-789.97,0.00060273,120]
[358344573,1744965061101,-5573.03,0.00060273,120]
[358344574,1744965061110,-500.0,0.00060273,120]
[358344575,1744965061120,-533.35,0.00060273,120]
[358344576,1744965061130,-500.0,0.00060273,120]
[358344577,1744965061140,-500.0,0.00060273,120]
[358344578,1744965061150,-500.0,0.00060273,120]
[358344579,1744965061159,-1235.03,0.00060273,120]
[358344580,1744965061169,-500.0,0.00060273,120]
[358344581,1744965061179,-500.0,0.00060273,120]
[358344582,1744965061190,-500.0,0.00060273,120]
[358344583,1744965061200,-548.36,0.00060273,120]
[358344584,1744965061210,-291.864448,0.00060273,120]
[358344585,1744965061219,-500.0,0.00060273,120]
[358344586,1744965061229,-291.864448,0.00060273,120]
[358344587,1744965061239,-633.56272632,0.00060273,120]
[358344588,1744965061249,-4216.19,0.00060273,7]
[358344589,1744965061259,-1060.19,0.00060273,120]
[358344590,1744965061268,-500.0,0.00060273,120]
[358344591,1744965061277,-150.64301549,0.00060273,120]
[358344592,1744965061287,-3077.58,0.00060273,120]
[358344593,1744965061297,-500.0,0.00060273,120]
[358344594,1744965061306,-500.0,0.00060273,120]
[358344595,1744965061316,-770.9,0.00060273,120]
[358344596,1744965061326,-500.0,0.00060273,120]
[358344597,1744965061336,-4300.91,0.00060273,120]
[358344598,1744965061346,-4156.52,0.00060273,120]
[358344599,1744965061356,-628.19,0.00060273,120]
[358344600,1744965061366,-500.0,0.00060273,120]
[358344601,1744965061375,-500.0,0.00060273,120]
[358344602,1744965061385,-691.54,0.00060273,120]
[358344603,1744965061399,-506.93320905,0.00060274,120]
[358344604,1744965061408,-150.0,0.00060274,120]
[358344605,1744965061418,-500.0,0.00060274,120]
[358344606,1744965061429,-150.0,0.00060274,120]
[358344607,1744965061439,-150.0,0.00060274,120]
[358344608,1744965061448,-150.0,0.00060274,60]
[358344609,1744965061457,-150.0,0.00060274,120]
[358344610,1744965061468,-500.0,0.00060274,120]
[358344611,1744965061477,-500.0,0.00060274,120]
[358344612,1744965061487,-500.0,0.00060274,120]
[358344613,1744965061497,-150.0,0.00060274,120]
[358344614,1744965061506,-154.5935775,0.00060274,120]
[358344615,1744965061515,-500.0,0.00060274,120]
[358344616,1744965061525,-188.62245227,0.00060274,120]
[358344617,1744965061535,-150.0,0.00060274,120]
[358344618,1744965061545,-150.0,0.00060274,120]
[358344619,1744965061555,-500.0,0.00060274,120]
[358344620,1744965061565,-500.0,0.00060274,120]
[358344621,1744965061574,-500.0,0.00060274,120]
[358344622,1744965061585,-583.55045058,0.00060323,120]
[358344623,1744965061595,-521.3,0.00060323,120]
[358344624,1744965061605,-890.47,0.00060323,120]
[358344625,1744965061615,-500.0,0.00060323,120]
[358344626,1744965061625,-167.08,0.00060338,2]
[358344627,1744965061635,-2645.7,0.000604,60]
[358344628,1744965061644,-500.0,0.00060821,120]
[358344629,1744965061654,-500.0,0.00060821,120]
[358344630,1744965061663,-500.0,0.00060821,120]
[358344631,1744965061674,-1250.02,0.00060821,120]
[358344632,1744965061685,-831.64,0.00060821,120]
[358344633,1744965061695,-591.76,0.00060821,120]
[358344634,1744965061815,-2013.03,0.00060821,120]
[358344635,1744965061826,-612.45,0.00060821,120]
[358344636,1744965061837,-1583.91,0.00060821,120]
[358344637,1744965061846,-789.97,0.00060821,120]
[358344638,1744965061855,-5573.03,0.00060821,120]
[358344639,1744965061865,-500.0,0.00060821,120]
[358344640,1744965061875,-533.35,0.00060821,120]
[358344641,1744965061884,-500.0,0.00060821,120]
[358344642,1744965061894,-500.0,0.00060821,120]
[358344643,1744965061903,-500.0,0.00060821,120]
[358344644,1744965061913,-1235.03,0.00060821,120]
[358344645,1744965061923,-500.0,0.00060821,120]
[358344646,1744965061933,-500.0,0.00060821,120]
[358344647,1744965061943,-500.0,0.00060821,120]
[358344648,1744965061953,-548.36,0.00060821,120]
[358344649,1744965061964,-500.0,0.00060821,120]
[358344650,1744965061974,-4216.19,0.00060821,7]
[358344651,1744965061985,-1060.19,0.00060821,120]
[358344652,1744965061995,-500.0,0.00060821,120]
[358344653,1744965062006,-3077.58,0.00060821,120]
[358344654,1744965062016,-192.06933601,0.00060821,120]
[358344655,1744965062026,-500.0,0.00060821,120]
[358344656,1744965062037,-770.9,0.00060821,120]
[358344657,1744965062047,-500.0,0.00060821,120]
[358344658,1744965062058,-4300.91,0.00060821,120]
[358344659,1744965062070,-4156.52,0.00060821,120]
[358344660,1744965062082,-628.19,0.00060821,120]
[358344661,1744965062094,-500.0,0.00060821,120]
[358344662,1744965062104,-500.0,0.00060821,120]
[358344663,1744965062115,-691.54,0.00060821,120]
[358344664,1744965062125,-1005.08484448,0.00060852,14]
[358344665,1744965062135,-521.3,0.00060871,120]
[358344666,1744965062145,-890.47,0.00060871,120]
[358344667,1744965062155,-500.0,0.00060871,120]
[358344668,1744965062165,-161.79,0.00060914,120]
[358344669,1744965062174,-191.79,0.00061,120]
[358344670,1744965062184,-170.0,0.00061352,15]
[358344671,1744965062195,-207.97,0.00061353,2]
[358344672,1744965062204,-199.14,0.00061354,2]
[358344673,1744965062214,-500.0,0.00061369,120]
[358344674,1744965062224,-500.0,0.00061369,120]
[358344675,1744965062233,-500.0,0.00061369,120]
[358344676,1744965062243,-1250.02,0.00061369,120]
[358344677,1744965062254,-831.64,0.00061369,120]
[358344678,1744965062264,-591.76,0.00061369,120]
[358344679,1744965062273,-2013.03,0.00061369,120]
[358344680,1744965062283,-612.45,0.00061369,120]
[358344681,1744965062293,-1583.91,0.00061369,120]
[358344682,1744965062302,-789.97,0.00061369,120]
[358344683,1744965062311,-5573.03,0.00061369,120]
[358344684,1744965062321,-500.0,0.00061369,120]
[358344685,1744965062331,-533.35,0.00061369,120]
[358344686,1744965062342,-500.0,0.00061369,120]
[358344687,1744965062352,-500.0,0.00061369,120]
[358344688,1744965062362,-500.0,0.00061369,120]
[358344689,1744965062372,-1235.03,0.00061369,120]
[358344690,1744965062383,-500.0,0.00061369,120]
[358344691,1744965062396,-500.0,0.00061369,120]
[358344692,1744965062405,-500.0,0.00061369,120]
[358344693,1744965062415,-548.36,0.00061369,120]
[358344694,1744965062425,-500.0,0.00061369,120]
[358344695,1744965062434,-4216.19,0.00061369,7]
[358344696,1744965062443,-1060.19,0.00061369,120]
[358344697,1744965062453,-500.0,0.00061369,120]
[358344698,1744965062463,-3077.58,0.00061369,120]
[358344699,1744965062473,-500.0,0.00061369,120]
[358344700,1744965062482,-165.470165,0.00061369,120]
[358344701,1744965062492,-165.470165,0.00061369,120]
[358344702,1744965062502,-1487.11164,0.00061369,120]
[358344703,1744965062511,-770.9,0.00061369,120]
[358344704,1744965062521,-1487.11164,0.00061369,120]
[358344705,1744965062530,-151.0,0.00061369,120]
[358344706,1744965062539,-500.0,0.00061369,120]
[358344707,1744965062549,-4300.91,0.00061369,120]
[358344708,1744965062557,-4156.52,0.00061369,120]
[358344709,1744965062566,-628.19,0.00061369,120]
[358344710,1744965062574,-500.0,0.00061369,120]
[358344711,1744965062585,-151.0,0.00061369,120]
[358344712,1744965062594,-151.0,0.00061369,120]
[358344713,1744965062604,-151.0,0.00061369,120]
[358344714,1744965062613,-151.0,0.00061369,120]
[358344715,1744965062622,-500.0,0.00061369,120]
[358344716,1744965062631,-691.54,0.00061369,120]
[358344717,1744965062640,-151.0,0.00061369,120]
[358344718,1744965062650,-521.3,0.00061419,120]
[358344719,1744965062659,-890.47,0.00061419,120]
[358344720,1744965062668,-500.0,0.00061419,120]
[358344721,1744965062678,-151.0,0.00061419,120]
[358344722,1744965062687,-153.482848,0.00061419,90]
[358344723,1744965062697,-151.0,0.00061419,30]
[358344724,1744965062707,-261.047419,0.00061419,120]
[358344725,1744965062716,-151.0,0.00061419,120]
[358344726,1744965062726,-261.047419,0.00061419,120]
[358344727,1744965062735,-151.0,0.00061419,120]
[358344728,1744965062744,-245.952544,0.00061419,120]
[358344729,1744965062754,-245.952544,0.00061419,120]
[358344730,1744965062764,-165.95,0.00061452,2]
[358344731,1744965062773,-3213.73205018,0.00061584,15]
[358344732,1744965062783,-151.56608142,0.00061817,41]
[358344733,1744965062793,-500.0,0.00061917,120]
[358344734,1744965062803,-500.0,0.00061917,120]
[358344735,1744965062812,-500.0,0.00061917,120]
[358344736,1744965062822,-1250.02,0.00061917,120]
[358344737,1744965062833,-831.64,0.00061917,120]
[358344738,1744965062843,-591.76,0.00061917,120]
[358344739,1744965062853,-2013.03,0.00061917,120]
[358344740,1744965062863,-612.45,0.00061917,120]
[358344741,1744965062873,-1583.91,0.00061917,120]
[358344742,1744965062883,-789.97,0.00061917,120]
[358344743,1744965062893,-5573.03,0.00061917,120]
[358344744,1744965062903,-500.0,0.00061917,120]
[358344745,1744965062913,-533.35,0.00061917,120]
[358344746,1744965062923,-500.0,0.00061917,120]
[358344747,1744965062933,-500.0,0.00061917,120]
[358344748,1744965062943,-500.0,0.00061917,120]
[358344749,1744965062953,-1235.03,0.00061917,120]
[358344750,1744965062962,-500.0,0.00061917,120]
[358344751,1744965062972,-500.0,0.00061917,120]
[358344752,1744965062981,-500.0,0.00061917,120]
[358344753,1744965062991,-548.36,0.00061917,120]
[358344754,1744965063000,-500.0,0.00061917,120]
[358344755,1744965063009,-4216.19,0.00061917,7]
[358344756,1744965063019,-1060.19,0.00061917,120]
[358344757,1744965063029,-500.0,0.00061917,120]
[358344758,1744965063039,-3077.58,0.00061917,120]
[358344759,1744965063050,-500.0,0.00061917,120]
[358344760,1744965063061,-770.9,0.00061917,120]
[358344761,1744965063072,-500.0,0.00061917,120]
[358344762,1744965063085,-4300.91,0.00061917,120]
[358344763,1744965063096,-4156.52,0.00061917,120]
[358344764,1744965063107,-628.19,0.00061917,120]
[358344765,1744965063118,-500.0,0.00061917,120]
[358344766,1744965063128,-500.0,0.00061917,120]
[358344767,1744965063139,-691.54,0.00061917,120]
[358344768,1744965063149,-521.3,0.00061967,120]
[358344769,1744965063159,-890.47,0.00061967,120]
[358344770,1744965063169,-500.0,0.00061967,120]
[358344771,1744965063179,-151.0,0.00061967,120]
[358344772,1744965063189,-151.0,0.00061967,120]
[358344773,1744965063200,-151.0,0.00061967,120]
[358344774,1744965063211,-151.0,0.00061967,120]
[358344775,1744965063221,-151.0,0.00061967,120]
[358344776,1744965063232,-151.0,0.00061967,120]
[358344777,1744965063243,-151.0,0.00061967,120]
[358344778,1744965063253,-254.46584701,0.00062028,41]
[358344779,1744965063263,-1000.0,0.00062128,60]
[358344780,1744965063273,-4381.72503702,0.00062162,15]
[358344781,1744965063283,-151.0,0.00062465,120]
[358344782,1744965063295,-151.0,0.00062465,120]
[358344783,1744965063305,-151.0,0.00062465,120]
[358344784,1744965063315,-500.0,0.00062465,120]
[358344785,1744965063325,-500.0,0.00062465,120]
[358344786,1744965063339,-387.28119613,0.00062465,120]